bitfinex/quotes_BTCUSD_20240918
["timestamp","ask_amount","ask_price","bid_price","bid_amount"]
[1726683463680,1.01633034,60612.0,60585.0,0.16305367]
[1726683463681,0.99043406,60603.0,60585.0,0.16305367]
[1726683463925,0.99043406,60603.0,60597.0,0.330049]
[1726683464173,0.99043406,60603.0,60597.0,0.330048]
[1726683464409,0.99043406,60603.0,60586.0,0.15047634]
[1726683464410,0.16305367,60602.0,60586.0,0.15047634]
[1726683464639,0.16305367,60602.0,60573.0,0.06615757]
[1726683464640,0.32806467,60602.0,60601.0,0.99043406]
[1726683464870,0.32806467,60602.0,60573.0,0.06615757]
[1726683464871,0.16305367,60602.0,60588.0,0.330098]
[1726683465105,0.16305367,60601.0,60595.0,0.99043406]
[1726683465354,0.16305367,60601.0,60595.0,0.165028]
[1726683465355,0.001,60599.0,60595.0,0.165028]
[1726683465586,0.001,60599.0,60598.0,0.165021]
[1726683465827,0.329981,60610.0,60596.0,0.0495105]
[1726683466076,0.99043406,60611.0,60601.0,0.001]
[1726683466077,0.001,60602.0,60601.0,0.001]
[1726683466329,0.001,60602.0,60601.0,0.826067]
[1726683466592,0.001,60602.0,60601.0,0.49604]
[1726683466836,0.001,60602.0,60601.0,1.24577662]
[1726683467095,0.001,60602.0,60601.0,1.28944213]
[1726683467592,0.0031548,60613.0,60609.0,0.329983]
[1726683467841,0.0031548,60613.0,60612.0,0.164983]
[1726683468084,0.0031548,60613.0,60612.0,0.49495]
[1726683468328,0.0031548,60613.0,60612.0,0.58455579]
[1726683468562,0.0031548,60613.0,60612.0,1.29432197]
[1726683469052,0.0031548,60613.0,60612.0,1.24448979]
[1726683469299,0.0041548,60613.0,60612.0,1.41354346]
[1726683469565,0.0031548,60613.0,60612.0,1.73751046]
[1726683469814,0.0031548,60613.0,60612.0,1.83951046]
[1726683470050,0.0002,60619.0,60614.0,1.484802]
[1726683470298,0.329732,60656.0,60622.0,0.494869]
[1726683470545,0.00072,60623.0,60622.0,2.07957467]
[1726683470791,0.00062,60623.0,60622.0,2.07957467]
[1726683471043,0.24747371,60657.0,60622.0,2.07957467]
[1726683471044,0.0001,60644.0,60622.0,0.26505367]
[1726683471308,0.24747371,60650.0,60648.0,0.494656]
[1726683471548,0.98946014,60655.0,60654.0,0.659478]
[1726683471788,0.0002,60659.0,60656.0,0.3512757]
[1726683472068,0.0002,60659.0,60657.0,0.00329667]
[1726683472304,0.0002,60659.0,60648.0,0.11757217]
[1726683472539,0.0002,60659.0,60652.0,0.98956014]
[1726683472771,0.0002,60659.0,60656.0,0.3512757]
[1726683473013,0.0002,60659.0,60657.0,0.00329667]
[1726683473289,0.0012,60659.0,60658.0,1.15591083]
[1726683473537,0.0002,60659.0,60656.0,0.3512757]
[1726683473759,0.0002,60659.0,60657.0,1.18774138]
[1726683474011,0.0002,60659.0,60657.0,0.19818124]
[1726683474296,0.0002,60659.0,60657.0,0.03512757]
[1726683474514,0.0002,60659.0,60649.0,0.3512757]
[1726683474752,0.0002,60659.0,60643.0,0.1]
[1726683474753,0.0002,60659.0,60657.0,0.98956014]
[1726683474988,0.0002,60659.0,60650.0,0.98956014]
[1726683475241,0.0002,60659.0,60638.0,0.1971]
[1726683475242,0.16305367,60658.0,60638.0,0.1971]
[1726683475478,0.16305367,60658.0,60637.0,0.3512757]
[1726683475479,0.00331709,60657.0,60646.0,0.98956014]
[1726683475711,0.00331709,60657.0,60639.0,1.07738131]
[1726683475712,0.164872,60653.0,60652.0,0.005]
[1726683475945,0.164872,60653.0,60626.0,0.1917]
[1726683475946,0.16305367,60653.0,60647.0,0.98956014]
[1726683476194,0.0002,60659.0,60647.0,0.98956014]
[1726683476436,0.164859,60658.0,60649.0,0.3512757]
[1726683476684,0.164859,60658.0,60648.0,0.13408358]
[1726683476685,0.16305367,60658.0,60648.0,0.13408358]
[1726683476923,0.16305367,60657.0,60650.0,0.98956014]
[1726683477266,0.16305367,60656.0,60646.0,0.001]
[1726683477506,0.98956014,60654.0,60646.0,0.001]
[1726683477738,0.824442,60647.0,60646.0,0.001]
[1726683477980,0.824442,60647.0,60612.0,0.44088149]
[1726683477981,0.3512757,60638.0,60616.0,0.329942]
[1726683478223,1.0109277,60638.0,60637.0,0.98956014]
[1726683478462,1.0109277,60638.0,60601.0,0.001644]
[1726683478463,0.1,60637.0,60601.0,0.001644]
[1726683478700,0.1,60637.0,60626.0,0.98956014]
[1726683478701,0.164943,60627.0,60626.0,0.98956014]
[1726683478953,0.164943,60627.0,60602.0,0.08824547]
[1726683478954,0.32989,60627.0,60602.0,0.08824547]
[1726683479191,0.98956014,60626.0,60609.0,0.98956014]
[1726683479429,0.1981,60632.0,60616.0,0.001]
[1726683479430,0.49491,60617.0,60616.0,0.001]
[1726683479671,0.49491,60617.0,60602.0,0.08824547]
[1726683479672,0.16305367,60617.0,60602.0,0.08824547]
[1726683479905,0.3512757,60618.0,60601.0,0.001644]
[1726683479906,0.494959,60611.0,60610.0,0.98956014]
[1726683480141,0.49302667,60611.0,60603.0,0.98956014]
[1726683480389,0.85989,60627.0,60610.0,0.98956014]
[1726683480390,0.02588679,60627.0,60610.0,0.98956014]
[1726683480657,0.02588679,60627.0,60603.0,0.98956014]
[1726683480658,0.98956014,60621.0,60603.0,1.34083584]
[1726683480936,0.98956014,60621.0,60601.0,0.002644]
[1726683480937,0.164988,60611.0,60604.0,0.98956014]
[1726683481178,0.12469826,60612.0,60604.0,0.98956014]
[1726683481421,0.002,60637.0,60605.0,0.06298217]
[1726683481672,0.002,60637.0,60614.0,0.329953]
[1726683481673,0.95928158,60624.0,60614.0,0.329953]
[1726683481937,0.98956014,60629.0,60628.0,0.49482]
[1726683482156,0.33,60663.0,60628.0,0.49482]
[1726683482157,0.98956014,60641.0,60635.0,0.329842]
[1726683482441,0.98956014,60665.0,60627.0,0.1848]
[1726683482442,0.98956014,60665.0,60651.0,0.164877]
[1726683482680,0.329699,60662.0,60640.0,0.164905]
[1726683482916,0.329757,60651.0,60612.0,0.329967]
[1726683483154,0.329757,60651.0,60642.0,0.98956014]
[1726683483155,0.16305367,60651.0,60642.0,0.98956014]
[1726683483394,0.16305367,60651.0,60617.0,0.3512757]
[1726683483395,0.98956014,60643.0,60617.0,0.3512757]
[1726683483667,0.98956014,60643.0,60628.0,0.98956014]
[1726683483668,0.98956014,60641.0,60628.0,0.98956014]
[1726683483906,0.003,60611.0,60610.0,0.165989]
[1726683484149,0.003,60611.0,60610.0,0.495965]
[1726683484394,0.003,60611.0,60610.0,0.95286888]
[1726683484643,0.003,60611.0,60610.0,0.62289088]
[1726683484846,0.003,60611.0,60610.0,0.45790388]
[1726683485121,0.003,60611.0,60610.0,1.31897667]
[1726683485370,0.98956014,60626.0,60625.0,0.659792]
[1726683485618,0.98956014,60634.0,60633.0,0.494779]
[1726683485895,0.98956014,60634.0,60633.0,0.824632]
[1726683486133,0.98956014,60650.0,60611.0,0.5063]
[1726683486373,0.98956014,60636.0,60622.0,0.98956014]
[1726683486594,0.98956014,60643.0,60642.0,0.164902]
[1726683486824,0.98956014,60633.0,60632.0,0.164929]
[1726683487053,0.98956014,60643.0,60617.0,0.3512757]
[1726683487311,0.98956014,60643.0,60633.0,0.014]
[1726683487312,0.98956014,60636.0,60633.0,0.014]
[1726683487553,0.98956014,60643.0,60633.0,0.014]
[1726683487792,0.16305367,60642.0,60634.0,0.98956014]
[1726683488039,0.98956014,60639.0,60633.0,0.014]
[1726683488285,0.16305367,60638.0,60635.0,0.98956014]
[1726683488554,1.31929514,60655.0,60633.0,0.014]
[1726683488795,1.31929514,60655.0,60612.0,0.05063]
[1726683488796,0.98956014,60640.0,60627.0,0.329884]
[1726683489044,0.3512757,60632.0,60628.0,0.98956014]
[1726683489265,0.3512757,60632.0,60612.0,0.05063]
[1726683489266,0.023,60631.0,60612.0,0.05063]
[1726683489508,0.329872,60630.0,60622.0,0.98956014]
[1726683489779,0.16305367,60630.0,60615.0,0.98956014]
[1726683490038,0.18605367,60629.0,60615.0,0.98956014]
[1726683490260,0.3512757,60627.0,60615.0,0.98956014]
[1726683490504,0.164952,60624.0,60615.0,0.98956014]
[1726683490792,0.18605367,60629.0,60602.0,0.330021]
[1726683490793,0.16305367,60623.0,60602.0,0.330021]
[1726683491067,0.16305367,60623.0,60604.0,0.98956014]
[1726683491068,0.165002,60605.0,60604.0,0.98956014]
[1726683491290,0.023,60615.0,60604.0,0.98956014]
[1726683491526,0.02588225,60621.0,60604.0,0.05346519]
[1726683491765,0.023,60630.0,60595.0,0.1881]
[1726683492010,0.023,60627.0,60581.0,0.1832]
[1726683492254,0.164959,60622.0,60615.0,0.001]
[1726683492451,0.164987,60611.0,60604.0,0.98956014]
[1726683492745,0.98956014,60619.0,60606.0,0.98956014]
[1726683492746,0.16305367,60610.0,60606.0,0.98956014]
[1726683492990,0.16305367,60609.0,60606.0,0.98956014]
[1726683493224,0.16305367,60609.0,60604.0,0.001]
[1726683493427,0.16305367,60609.0,60601.0,0.001644]
[1726683493712,0.16305367,60609.0,60602.0,0.98956014]
[1726683493935,0.16305367,60609.0,60601.0,0.001644]
[1726683494428,0.32804667,60609.0,60602.0,0.98956014]
[1726683494675,0.98956014,60608.0,60602.0,0.11562191]
[1726683494920,0.98956014,60608.0,60601.0,0.001644]
[1726683494921,0.329906,60624.0,60603.0,0.98956014]
[1726683495161,0.002,60628.0,60610.0,0.164986]
[1726683495162,0.000822,60616.0,60610.0,0.164986]
[1726683495396,0.98956014,60611.0,60602.0,0.04741276]
[1726683495619,0.000822,60616.0,60601.0,0.001644]
[1726683495620,0.006,60609.0,60608.0,0.494983]
[1726683495847,0.000822,60616.0,60614.0,0.164977]
[1726683496072,0.000822,60616.0,60612.0,0.329965]
[1726683496073,0.000822,60616.0,60615.0,0.164975]
[1726683496300,0.000822,60616.0,60601.0,0.3529197]
[1726683496301,0.000822,60616.0,60607.0,0.329991]
[1726683496546,0.000822,60616.0,60601.0,0.001644]
[1726683496779,0.000822,60616.0,60615.0,0.494926]
[1726683497003,0.000822,60616.0,60611.0,0.164985]
[1726683497264,0.000822,60616.0,60601.0,0.001644]
[1726683497265,0.000822,60616.0,60608.0,0.004]
[1726683497557,0.000822,60616.0,60615.0,0.824877]
[1726683497791,0.000822,60616.0,60615.0,0.494926]
[1726683498262,0.000822,60616.0,60601.0,0.001644]
[1726683498526,0.000822,60616.0,60615.0,0.164975]
[1726683498771,0.3812757,60635.0,60615.0,0.164975]
[1726683498772,0.24746146,60632.0,60631.0,0.494796]
[1726683499018,0.24746146,60640.0,60631.0,0.49291767]
[1726683499266,0.24746146,60640.0,60639.0,0.16491]
[1726683499500,0.98956014,60647.0,60635.0,0.3512757]
[1726683499501,0.98956014,60647.0,60646.0,0.164891]
[1726683499739,0.98956014,60647.0,60646.0,0.494673]
[1726683499971,0.0002,60659.0,60646.0,0.082447]
[1726683500162,0.16305367,60658.0,60654.0,0.164868]
[1726683500436,0.164874,60653.0,60641.0,0.329805]
[1726683500687,0.0002,60659.0,60647.0,0.24746146]
[1726683500688,0.16305367,60652.0,60647.0,0.24746146]
[1726683500905,0.16305367,60652.0,60646.0,0.164889]
[1726683501181,0.16305367,60652.0,60648.0,0.164883]
[1726683501424,0.16305367,60652.0,60646.0,0.004]
[1726683501689,0.16305367,60652.0,60647.0,0.24746146]
[1726683501929,0.16305367,60652.0,60646.0,0.004]
[1726683501930,0.0002,60659.0,60646.0,0.004]
[1726683502178,0.16305367,60651.0,60646.0,0.004]
[1726683502701,0.0002,60659.0,60646.0,0.004]
[1726683502940,0.24746146,60657.0,60647.0,0.0333795]
[1726683503181,0.001,60652.0,60641.0,0.24746146]
[1726683503421,0.001,60652.0,60649.0,0.24746146]
[1726683503687,0.0002,60659.0,60646.0,0.3512757]
[1726683503982,0.98927461,60657.0,60653.0,0.3512757]
[1726683504476,0.0002,60659.0,60653.0,0.3512757]
[1726683504728,0.0002,60659.0,60654.0,0.03512757]
[1726683505229,0.00082,60672.0,60664.0,0.3512757]
[1726683505471,0.98927461,60668.0,60664.0,0.3512757]
[1726683505726,0.00082,60672.0,60654.0,0.03512757]
[1726683506002,0.00082,60672.0,60661.0,0.98927461]
[1726683506273,0.00082,60672.0,60664.0,0.3512757]
[1726683506520,0.00082,60672.0,60670.0,0.3512757]
[1726683506793,0.00082,60672.0,60671.0,0.164823]
[1726683507054,0.00082,60672.0,60671.0,0.98716867]
[1726683507288,0.00082,60672.0,60671.0,1.31681467]
[1726683507563,0.0002,60679.0,60676.0,0.824047]
[1726683507797,0.329523,60694.0,60683.0,0.16479]
[1726683508042,0.329523,60694.0,60679.0,0.329603]
[1726683508043,0.329541,60691.0,60679.0,0.329603]
[1726683508282,0.329489,60700.0,60683.0,0.16479]
[1726683508521,1.32447461,60709.0,60683.0,0.16479]
[1726683508522,0.98927461,60695.0,60683.0,1.153533]
[1726683508801,0.00019997,60702.0,60684.0,0.1812]
[1726683509090,0.0069887,60751.0,60747.0,0.03]
[1726683509299,0.0069887,60751.0,60728.0,0.329335]
[1726683509543,0.0069887,60751.0,60724.0,0.03]
[1726683509783,0.0069887,60751.0,60713.0,0.510613]
[1726683509784,0.0069887,60751.0,60725.0,0.03]
[1726683509785,0.164618,60747.0,60725.0,0.03]
[1726683510023,0.0069887,60751.0,60725.0,0.03]
[1726683510272,0.06,60750.0,60720.0,0.03]
[1726683510507,0.06,60750.0,60705.0,0.1807]
[1726683510508,0.329282,60739.0,60723.0,0.164681]
[1726683510765,0.329282,60739.0,60728.0,0.001]
[1726683510766,0.329294,60736.0,60728.0,0.001]
[1726683510990,0.16305367,60735.0,60728.0,0.001]
[1726683511220,0.16305367,60735.0,60725.0,0.98785758]
[1726683511717,0.164661,60731.0,60722.0,0.164683]
[1726683511950,1.15091125,60730.0,60723.0,0.0194683]
[1726683512191,1.15091125,60730.0,60715.0,0.329406]
[1726683512192,0.16305367,60730.0,60715.0,0.329406]
[1726683512425,0.16305367,60730.0,60722.0,0.98785758]
[1726683512689,0.32771667,60730.0,60725.0,0.001]
[1726683512964,0.16305367,60730.0,60719.0,0.164692]
[1726683513235,0.16305367,60730.0,60713.0,0.331418]
[1726683513236,0.164679,60724.0,60723.0,0.001]
[1726683513500,0.164679,60724.0,60706.0,0.194726]
[1726683513501,0.18605367,60724.0,60706.0,0.194726]
[1726683513734,0.18605367,60724.0,60703.0,0.32947]
[1726683513735,0.517095,60717.0,60716.0,0.98785758]
[1726683513967,0.023,60716.0,60709.0,0.98785758]
[1726683514237,0.16305367,60712.0,60693.0,0.002]
[1726683514529,0.023,60716.0,60684.0,0.03]
[1726683514530,0.164752,60697.0,60684.0,0.03]
[1726683514766,0.1,60715.0,60679.0,0.002]
[1726683514767,0.352494,60700.0,60686.0,0.002]
[1726683515247,0.023,60705.0,60688.0,0.98785758]
[1726683515479,0.98785758,60703.0,60689.0,0.10198576]
[1726683515709,0.164762,60694.0,60689.0,0.10198576]
[1726683515941,0.16305367,60693.0,60689.0,0.10198576]
[1726683516183,0.16305367,60693.0,60662.0,0.3512757]
[1726683516184,0.98785758,60691.0,60662.0,0.3512757]
[1726683516448,0.16305367,60690.0,60685.0,0.98785758]
[1726683516684,0.16305367,60690.0,60678.0,0.98785758]
[1726683516925,0.023,60689.0,60678.0,0.98785758]
[1726683517167,0.16305367,60688.0,60679.0,0.09878576]
[1726683517402,0.023,60695.0,60685.0,0.329565]
[1726683517641,0.98785758,60687.0,60686.0,0.164782]
[1726683517903,0.16305367,60694.0,60684.0,0.164786]
[1726683517904,0.164768,60692.0,60684.0,0.164786]
[1726683518155,0.164775,60689.0,60682.0,0.164792]
[1726683518394,0.16305367,60689.0,60688.0,0.494331]
[1726683518628,0.16305367,60689.0,60685.0,0.164784]
[1726683518867,0.98785758,60703.0,60686.0,0.98785758]
[1726683519127,0.98785758,60703.0,60679.0,0.09878576]
[1726683519128,0.16305367,60702.0,60695.0,0.329516]
[1726683519581,0.16305367,60702.0,60701.0,0.164741]
[1726683519585,0.98785758,60711.0,60710.0,0.164717]
[1726683519917,0.98785758,60711.0,60689.0,0.00329531]
[1726683519918,0.164771,60690.0,60689.0,0.00164]
[1726683520168,0.494314,60690.0,60689.0,0.00164]
[1726683520395,0.823857,60690.0,60689.0,0.00164]
[1726683520674,0.65736767,60690.0,60689.0,0.00164]
[1726683520887,0.023,60701.0,60689.0,0.00164]
[1726683521125,0.24711697,60699.0,60689.0,0.00164]
[1726683521370,0.16305367,60700.0,60699.0,0.164747]
[1726683521603,0.24711697,60714.0,60699.0,0.0164747]
[1726683521838,0.24711697,60706.0,60705.0,0.164731]
[1726683522064,0.41017064,60714.0,60692.0,0.3512757]
[1726683522328,0.24711697,60711.0,60710.0,0.164717]
[1726683522572,0.98820739,60714.0,60698.0,0.1677474]
[1726683522806,0.16305367,60721.0,60716.0,0.164699]
[1726683523083,0.98820739,60717.0,60716.0,0.164701]
[1726683523401,0.16305367,60721.0,60700.0,0.98820739]
[1726683523640,0.16305367,60721.0,60720.0,0.16469]
[1726683523876,0.164663,60730.0,60704.0,0.3512757]
[1726683524118,0.98820739,60724.0,60717.0,0.329394]
[1726683524351,0.98820739,60724.0,60704.0,0.3512757]
[1726683524352,0.16305367,60723.0,60704.0,0.3512757]
[1726683524607,0.16305367,60723.0,60701.0,0.11559548]
[1726683524608,0.32773567,60723.0,60710.0,0.98820739]
[1726683524854,0.16305367,60723.0,60705.0,0.16181322]
[1726683525085,0.329394,60718.0,60709.0,1.15292639]
[1726683525319,0.329394,60718.0,60706.0,0.329455]
[1726683525320,0.023,60709.0,60689.0,0.00164]
[1726683525552,0.023,60709.0,60699.0,0.98820739]
[1726683525553,0.5160197,60700.0,60699.0,0.98820739]
[1726683525795,0.5160197,60700.0,60689.0,0.00164]
[1726683525796,0.187771,60690.0,60689.0,0.00164]
[1726683526022,0.517314,60690.0,60689.0,0.00164]
[1726683526302,0.68036767,60690.0,60689.0,0.00164]
[1726683526550,0.329472,60704.0,60689.0,0.00164]
[1726683526551,0.329452,60707.0,60689.0,0.00164]
[1726683526792,0.164758,60696.0,60689.0,0.00164]
[1726683527067,0.16305367,60695.0,60689.0,0.00164]
[1726683527284,0.164771,60690.0,60689.0,0.00164]
[1726683527521,0.68036767,60690.0,60689.0,0.00164]
[1726683527752,0.68036767,60690.0,60689.0,0.01364]
[1726683527753,0.001,60690.0,60689.0,0.01364]
[1726683528003,0.164767,60692.0,60689.0,0.00164]
[1726683528004,0.164768,60692.0,60689.0,0.00164]
[1726683528226,0.68036767,60690.0,60689.0,0.00164]
[1726683528474,0.16305367,60690.0,60689.0,0.00164]
[1726683528708,0.32782467,60690.0,60689.0,0.00164]
[1726683528968,0.16305367,60690.0,60689.0,0.00164]
[1726683529214,0.164767,60692.0,60689.0,0.00164]
[1726683529447,0.16305367,60691.0,60690.0,0.0166419]
[1726683529713,0.329543,60690.0,60689.0,0.00164]
[1726683529946,0.16305367,60690.0,60689.0,0.166414]
[1726683530173,0.164768,60692.0,60689.0,0.00164]
[1726683530410,0.16305367,60697.0,60691.0,0.329536]
[1726683530644,0.329518,60695.0,60689.0,0.00164]
[1726683530891,0.164771,60690.0,60689.0,0.00164]
[1726683531117,0.329429,60712.0,60689.0,0.00164]
[1726683531118,0.24715972,60705.0,60689.0,0.00364]
[1726683531396,0.24715972,60698.0,60691.0,0.164767]
[1726683531627,0.16305367,60704.0,60703.0,0.164736]
[1726683531905,0.32942,60713.0,60703.0,0.0494225]
[1726683531906,0.98855745,60708.0,60703.0,0.0494225]
[1726683532142,0.329422,60713.0,60703.0,0.0494225]
[1726683532143,0.16471,60713.0,60707.0,0.329451]
[1726683532384,0.98855745,60721.0,60695.0,0.3512757]
[1726683532627,0.98855745,60721.0,60701.0,0.329483]
[1726683532863,1.31789645,60728.0,60699.0,0.98855745]
[1726683532864,0.98855745,60720.0,60719.0,0.658772]
[1726683533096,0.98855745,60720.0,60719.0,0.823465]
[1726683533343,0.98855745,60720.0,60703.0,0.494202]
[1726683533344,0.16471,60713.0,60703.0,0.494202]
[1726683533580,0.16471,60713.0,60691.0,0.00156875]
[1726683533581,0.329454,60707.0,60691.0,0.00156875]
[1726683533827,0.16305367,60704.0,60703.0,0.98855745]
[1726683534061,0.16305367,60704.0,60696.0,0.98855745]
[1726683534062,0.16305367,60704.0,60699.0,0.164746]
[1726683534300,0.17205367,60704.0,60703.0,0.001]
[1726683534551,0.49252067,60704.0,60699.0,0.0494255]
[1726683534797,0.49252067,60704.0,60691.0,0.00156875]
[1726683534798,0.16305367,60704.0,60691.0,0.00256875]
[1726683535048,0.16305367,60704.0,60694.0,0.329516]
[1726683535278,0.16305367,60704.0,60691.0,0.00256875]
[1726683535279,0.98855745,60702.0,60691.0,0.00156875]
[1726683535545,0.98855745,60702.0,60699.0,0.001]
[1726683535546,0.16305367,60701.0,60699.0,0.001]
[1726683535765,1.00977567,60700.0,60699.0,0.001]
[1726683536052,2.02002937,60700.0,60699.0,0.001]
[1726683536306,1.176362,60692.0,60691.0,0.00156875]
[1726683536790,1.43941567,60692.0,60691.0,0.00156875]
[1726683537260,1.43941567,60692.0,60691.0,0.00256875]
[1726683537261,1.76894767,60692.0,60691.0,0.00256875]
[1726683537493,0.164838,60666.0,60660.0,0.03781377]
[1726683537734,0.1176,60689.0,60654.0,0.329734]
[1726683537735,0.023,60676.0,60665.0,1.00919782]
[1726683537979,0.023,60676.0,60665.0,0.02064037]
[1726683537980,0.329637,60673.0,60665.0,0.02064037]
[1726683538215,0.329655,60670.0,60665.0,0.02064037]
[1726683538465,0.023,60676.0,60657.0,0.659444]
[1726683538466,0.16305367,60669.0,60668.0,0.164831]
[1726683538744,0.98855745,60684.0,60654.0,0.38908947]
[1726683538745,0.24724528,60673.0,60666.0,0.164834]
[1726683538971,0.16305367,60672.0,60666.0,0.0206415]
[1726683539197,0.16305367,60672.0,60667.0,0.164833]
[1726683539448,0.16305367,60672.0,60666.0,0.04128236]
[1726683539682,0.16305367,60672.0,60667.0,0.02064086]
[1726683539683,0.164831,60668.0,60667.0,0.02064086]
[1726683539909,0.65754767,60668.0,60667.0,0.02064086]
[1726683540145,0.3512757,60691.0,60667.0,0.0412537]
[1726683540383,0.32952,60695.0,60667.0,0.0412537]
[1726683540384,0.41029895,60683.0,60667.0,0.0412537]
[1726683540623,0.98881812,60679.0,60674.0,0.164813]
[1726683540884,0.98881812,60679.0,60668.0,0.1909]
[1726683541128,0.98881812,60679.0,60666.0,0.0206415]
[1726683541129,0.32962,60676.0,60666.0,0.1854765]
[1726683541370,0.329582,60683.0,60666.0,0.0206415]
[1726683541602,0.98881812,60680.0,60675.0,0.02063828]
[1726683541860,0.98881812,60687.0,60675.0,0.02063828]
[1726683542110,0.98881812,60687.0,60686.0,0.823912]
[1726683542348,0.98881812,60709.0,60693.0,0.823817]
[1726683542586,0.98881812,60709.0,60693.0,1.153344]
[1726683542826,0.98881812,60709.0,60693.0,1.17398228]
[1726683543063,0.98881812,60709.0,60697.0,0.329505]
[1726683543299,0.98881812,60698.0,60687.0,0.03794019]
[1726683543540,0.98881812,60698.0,60688.0,1.03377675]
[1726683543541,0.16305367,60698.0,60688.0,1.03377675]
[1726683543789,0.16305367,60698.0,60691.0,0.329537]
[1726683544033,0.00082,60698.0,60692.0,0.04123868]
[1726683544273,0.00082,60698.0,60697.0,0.823762]
[1726683544521,0.98881812,60708.0,60707.0,0.494176]
[1726683544759,0.98881812,60708.0,60707.0,1.153078]
[1726683545245,0.98881812,60715.0,60714.0,0.494119]
[1726683545481,0.98881812,60722.0,60721.0,0.494062]
[1726683545720,0.98881812,60722.0,60721.0,0.5764069]
[1726683545959,0.98881812,60722.0,60707.0,0.004]
[1726683545960,0.16305367,60722.0,60707.0,0.004]
[1726683546385,0.5465757,60733.0,60707.0,0.004]
[1726683546386,0.16305367,60721.0,60712.0,0.98881812]
[1726683546388,0.16305367,60721.0,60707.0,0.004]
[1726683546389,0.164722,60708.0,60707.0,0.004]
[1726683546620,0.823612,60708.0,60707.0,0.004]
[1726683546848,0.16305367,60721.0,60707.0,0.004]
[1726683547105,0.164722,60708.0,60707.0,0.004]
[1726683547343,0.98666567,60708.0,60707.0,0.004]
[1726683547571,0.16305367,60708.0,60707.0,0.004]
[1726683547805,0.18605367,60708.0,60707.0,0.0168735]
[1726683548048,0.18605367,60708.0,60697.0,0.02063048]
[1726683548049,0.023,60708.0,60697.0,0.02063048]
[1726683548282,0.98881812,60720.0,60707.0,0.329451]
[1726683548283,0.164698,60717.0,60707.0,0.329451]
[1726683548525,0.164698,60717.0,60694.0,0.3512757]
[1726683548526,0.16305367,60717.0,60709.0,0.49416]
[1726683549002,0.16305367,60717.0,60711.0,0.329427]
[1726683549005,0.16305367,60717.0,60710.0,0.02062889]
[1726683549239,0.98881812,60719.0,60710.0,0.05563768]
[1726683549240,0.16305367,60716.0,60710.0,0.05563768]
[1726683549483,0.16305367,60716.0,60710.0,0.03500879]
[1726683549484,0.164704,60715.0,60710.0,0.03500879]
[1726683549718,0.329373,60722.0,60721.0,0.164687]
[1726683549719,0.004,60722.0,60721.0,0.164687]
[1726683549948,0.004,60722.0,60720.0,0.164689]
[1726683550188,0.004,60722.0,60721.0,0.164687]
[1726683550426,0.004,60722.0,60705.0,0.03817919]
[1726683550657,0.004,60722.0,60721.0,0.164687]
[1726683551184,0.00082,60739.0,60738.0,0.493924]
[1726683551428,0.00082,60739.0,60708.0,0.3274]
[1726683551429,0.00841443,60717.0,60716.0,0.658804]
[1726683551672,0.00841443,60717.0,60716.0,0.8893854]
[1726683551923,0.164665,60730.0,60711.0,0.329429]
[1726683551924,0.329371,60722.0,60711.0,0.329429]
[1726683552174,0.98881812,60723.0,60696.0,0.3294]
[1726683552399,0.3512757,60725.0,60696.0,0.3294]
[1726683552400,0.329408,60715.0,60705.0,0.98881812]
[1726683552633,0.023,60719.0,60702.0,0.164737]
[1726683552634,0.329421,60713.0,60702.0,0.164737]
[1726683552887,0.49247967,60712.0,60703.0,0.2141564]
[1726683553139,0.98881812,60711.0,60696.0,0.3294]
[1726683553373,0.16305367,60703.0,60685.0,0.03817919]
[1726683553608,0.164771,60690.0,60682.0,0.164792]
[1726683553891,0.946857,60690.0,60678.0,0.03817919]
[1726683554176,0.824007,60679.0,60678.0,0.03817919]
[1726683554424,0.3512757,60680.0,60659.0,0.0010353]
[1726683554425,0.023,60677.0,60659.0,0.0010353]
[1726683554697,0.023,60677.0,60667.0,0.98881812]
[1726683554698,0.164831,60668.0,60667.0,0.98881812]
[1726683554908,0.164831,60668.0,60660.0,0.98881812]
[1726683554909,0.16305367,60668.0,60663.0,0.164843]
[1726683555150,0.023,60677.0,60659.0,0.0010353]
[1726683555151,0.16305367,60667.0,60659.0,0.0010353]
[1726683556108,0.98881812,60666.0,60659.0,0.0010353]
[1726683556361,0.517526,60664.0,60663.0,0.001]
[1726683556586,0.517526,60664.0,60659.0,0.0010353]
[1726683556587,0.187853,60660.0,60659.0,0.0010353]
[1726683556822,0.68061267,60660.0,60659.0,0.0020353]
[1726683557062,0.35090667,60660.0,60659.0,0.0020353]
[1726683557318,0.68061267,60660.0,60659.0,0.0020353]
[1726683557564,1.34002467,60660.0,60659.0,0.0020353]
[1726683557820,1.01031867,60660.0,60659.0,0.0020353]
[1726683558062,0.16305367,60660.0,60659.0,0.0020353]
[1726683558306,0.3512757,60684.0,60659.0,0.0010353]
[1726683558603,0.164848,60662.0,60659.0,0.0010353]
[1726683558811,0.3512757,60665.0,60659.0,0.0010353]
[1726683559084,0.164853,60660.0,60659.0,0.0010353]
[1726683559298,1.04911153,60676.0,60659.0,0.0010353]
[1726683559299,0.98911153,60676.0,60659.0,0.0010353]
[1726683559540,0.494559,60660.0,60659.0,0.0010353]
[1726683559781,0.494559,60660.0,60629.0,0.02064595]
[1726683559782,0.329864,60631.0,60629.0,0.02064695]
[1726683560015,0.3041,60659.0,60629.0,0.02064695]
[1726683560016,0.3512757,60644.0,60629.0,0.02064695]
[1726683560291,0.16305367,60642.0,60629.0,0.02064695]
[1726683560536,0.16305367,60642.0,60632.0,0.98911153]
[1726683560769,1.01211153,60641.0,60628.0,0.00164]
[1726683560999,0.164931,60632.0,60628.0,0.00164]
[1726683561237,0.16305367,60631.0,60628.0,0.00164]
[1726683561472,0.68084967,60631.0,60628.0,0.00164]
[1726683561769,0.35098567,60631.0,60628.0,0.00164]
[1726683562238,0.18605367,60631.0,60628.0,0.00164]
[1726683562490,0.023,60638.0,60628.0,0.00164]
[1726683562715,0.003,60631.0,60628.0,0.00164]
[1726683562947,1.15402953,60636.0,60630.0,0.03842688]
[1726683563186,0.003,60631.0,60630.0,0.03842688]
[1726683563416,0.003,60631.0,60630.0,0.0047948]